[Event "*** Biggest EVER Titled Tuesday"]
[Site "Chess.com"]
[Date "2018.04.17"]
[Round "3"]
[White "Vugar_Manafov"]
[Black "Princec7"]
[Result "1-0"]
[WhiteElo "2300"]
[BlackElo "2376"]
[TimeControl "180+2"]
[EndTime "13:34:46 PDT"]
[Termination "Vugar_Manafov won by checkmate"]

1. Nf3 {[%clk 0:02:59.4]} 1... c5 {[%clk 0:03:00]} 2. g3 {[%clk 0:03:00.2]} 2...
d5 {[%clk 0:03:00.4]} 3. Bg2 {[%clk 0:03:01.1]} 3... Nf6 {[%clk 0:03:00.5]} 4.
O-O {[%clk 0:03:00.8]} 4... e6 {[%clk 0:02:59.9]} 5. d3 {[%clk 0:03:01.5]} 5...
Nc6 {[%clk 0:02:58.4]} 6. Nc3 {[%clk 0:03:02.5]} 6... Be7 {[%clk 0:02:57.4]} 7.
e4 {[%clk 0:03:02.1]} 7... O-O {[%clk 0:02:57.5]} 8. h3 {[%clk 0:03:00.9]} 8...
b6 {[%clk 0:02:54.6]} 9. Re1 {[%clk 0:02:58.9]} 9... Bb7 {[%clk 0:02:53.4]} 10.
Bf4 {[%clk 0:02:57.4]} 10... Rc8 {[%clk 0:02:46.7]} 11. e5 {[%clk 0:02:52.1]}
11... Nd7 {[%clk 0:02:47]} 12. h4 {[%clk 0:02:53.2]} 12... a6 {[%clk 0:02:41.5]}
13. a4 {[%clk 0:02:51.7]} 13... d4 {[%clk 0:02:25.1]} 14. Ne4 {[%clk 0:02:49]}
14... Nb4 {[%clk 0:02:26.5]} 15. Qd2 {[%clk 0:02:37.7]} 15... Nd5 {[%clk
0:02:26.5]} 16. Bg5 {[%clk 0:02:37.4]} 16... Bxg5 {[%clk 0:01:40.1]} 17. hxg5
{[%clk 0:02:33.6]} 17... Qc7 {[%clk 0:01:40.9]} 18. Nf6+ {[%clk 0:02:24.2]}
18... Kh8 {[%clk 0:01:24.4]} 19. Re4 {[%clk 0:01:46.8]} 19... gxf6 {[%clk
0:01:15.1]} 20. gxf6 {[%clk 0:01:46]} 20... N5xf6 {[%clk 0:01:15]} 21. Rh4
{[%clk 0:01:27]} 21... Nxe5 {[%clk 0:00:38.8]} 22. Qg5 {[%clk 0:01:20.9]} 22...
Ned7 {[%clk 0:00:25.2]} 23. Qh6 {[%clk 0:01:12.1]} 23... Bxf3 {[%clk 0:00:22.1]}
24. Bxf3 {[%clk 0:01:11.2]} 24... Rg8 {[%clk 0:00:23.2]} 25. Be4 {[%clk
0:01:07.4]} 25... Rg7 {[%clk 0:00:24.1]} 26. Kg2 {[%clk 0:01:08.5]} 26... Rcg8
{[%clk 0:00:22.3]} 27. Rah1 {[%clk 0:01:06.1]} 27... Qe5 {[%clk 0:00:08.8]} 28.
Qxh7+ {[%clk 0:01:02.5]} 28... Rxh7 {[%clk 0:00:04.1]} 29. Rxh7+ {[%clk
0:01:03.9]} 29... Nxh7 {[%clk 0:00:04.2]} 30. Rxh7# {[%clk 0:01:05.8]} 1-0

[Event "*** Biggest EVER Titled Tuesday"]
[Site "Chess.com"]
[Date "2018.04.17"]
[Round "3"]
[White "patzerplay"]
[Black "GameOverBro"]
[Result "1-0"]
[WhiteElo "2318"]
[BlackElo "2450"]
[TimeControl "180+2"]
[EndTime "13:34:48 PDT"]
[Termination "patzerplay won by resignation"]

1. e4 {[%clk 0:03:01.9]} 1... d6 {[%clk 0:03:01]} 2. d4 {[%clk 0:03:02.8]} 2...
Nf6 {[%clk 0:03:02]} 3. Nc3 {[%clk 0:03:04.2]} 3... e5 {[%clk 0:03:03]} 4. dxe5
{[%clk 0:03:04.6]} 4... dxe5 {[%clk 0:03:04.9]} 5. Qxd8+ {[%clk 0:03:05.9]} 5...
Kxd8 {[%clk 0:03:06.8]} 6. Bc4 {[%clk 0:02:58.9]} 6... Ke8 {[%clk 0:03:07.7]} 7.
Nf3 {[%clk 0:02:59.6]} 7... Bd6 {[%clk 0:03:08.6]} 8. Bg5 {[%clk 0:02:46]} 8...
a6 {[%clk 0:02:54.2]} 9. a4 {[%clk 0:02:38.6]} 9... Nbd7 {[%clk 0:02:53.6]} 10.
Nh4 {[%clk 0:02:08]} 10... g6 {[%clk 0:02:48.3]} 11. h3 {[%clk 0:02:02.8]} 11...
h6 {[%clk 0:02:45.9]} 12. Be3 {[%clk 0:01:46.8]} 12... Bc5 {[%clk 0:02:37]} 13.
Ke2 {[%clk 0:01:41.1]} 13... c6 {[%clk 0:02:22.3]} 14. g3 {[%clk 0:01:26.1]}
14... Bd4 {[%clk 0:02:14.1]} 15. Rad1 {[%clk 0:01:23.7]} 15... Bxc3 {[%clk
0:02:14.1]} 16. bxc3 {[%clk 0:01:24.6]} 16... Nxe4 {[%clk 0:02:13.3]} 17. Kf3
{[%clk 0:01:15.3]} 17... Nxc3 {[%clk 0:02:11.8]} 18. Rd6 {[%clk 0:01:09.1]}
18... Nd5 {[%clk 0:01:56]} 19. Bxd5 {[%clk 0:01:07.8]} 19... cxd5 {[%clk
0:01:57.9]} 20. Rxd5 {[%clk 0:01:08.5]} 20... b5 {[%clk 0:01:59]} 21. Rhd1
{[%clk 0:00:45.4]} 21... Bb7 {[%clk 0:01:59.5]} 22. Ke2 {[%clk 0:00:46.8]} 22...
Bxd5 {[%clk 0:01:59.2]} 23. Rxd5 {[%clk 0:00:48.7]} 23... bxa4 {[%clk
0:01:52.3]} 24. Ra5 {[%clk 0:00:49.7]} 24... Ke7 {[%clk 0:01:48.5]} 25. Rxa4
{[%clk 0:00:50]} 25... Rhc8 {[%clk 0:01:49.2]} 26. Ra2 {[%clk 0:00:46.8]} 26...
h5 {[%clk 0:01:48.2]} 27. Nf3 {[%clk 0:00:46.7]} 27... f6 {[%clk 0:01:48.3]} 28.
Nh4 {[%clk 0:00:46.6]} 28... Kf7 {[%clk 0:01:48.5]} 29. Nf3 {[%clk 0:00:47.6]}
29... Rc6 {[%clk 0:01:49.2]} 30. Nd2 {[%clk 0:00:47.7]} 30... Rac8 {[%clk
0:01:50.3]} 31. c4 {[%clk 0:00:49.3]} 31... f5 {[%clk 0:01:49]} 32. f4 {[%clk
0:00:49.6]} 32... e4 {[%clk 0:01:47.4]} 33. Ra5 {[%clk 0:00:49]} 33... Nb6
{[%clk 0:01:40.9]} 34. c5 {[%clk 0:00:32.4]} 34... Nd5 {[%clk 0:01:36.7]} 35.
Nc4 {[%clk 0:00:33.7]} 35... Re6 {[%clk 0:01:07.4]} 36. Nd6+ {[%clk 0:00:28.3]}
36... Rxd6 {[%clk 0:01:07.5]} 37. cxd6 {[%clk 0:00:30.2]} 37... Rc6 {[%clk
0:01:06.2]} 38. Rxd5 {[%clk 0:00:30.4]} 38... Ke8 {[%clk 0:01:04.6]} 39. d7+
{[%clk 0:00:31.1]} 39... Kd8 {[%clk 0:01:06.1]} 40. Bd4 {[%clk 0:00:31.4]} 40...
a5 {[%clk 0:01:07]} 41. Kd2 {[%clk 0:00:30.2]} 41... a4 {[%clk 0:01:08.3]} 42.
Bc3 {[%clk 0:00:29.7]} 42... Ra6 {[%clk 0:01:04.8]} 43. Ba5+ {[%clk 0:00:30.2]}
43... Rxa5 {[%clk 0:01:04.2]} 44. Rxa5 {[%clk 0:00:32.1]} 1-0

[Event "*** Biggest EVER Titled Tuesday"]
[Site "Chess.com"]
[Date "2018.04.17"]
[Round "3"]
[White "Th3ChessViking"]
[Black "MartinMatthiesen"]
[Result "0-1"]
[WhiteElo "2386"]
[BlackElo "2345"]
[TimeControl "180+2"]
[EndTime "13:34:54 PDT"]
[Termination "MartinMatthiesen won by checkmate"]

1. c4 {[%clk 0:03:01.9]} 1... c5 {[%clk 0:02:59.9]} 2. g3 {[%clk 0:03:02.3]}
2... g6 {[%clk 0:03:00.3]} 3. Bg2 {[%clk 0:03:03.2]} 3... Bg7 {[%clk 0:03:01.1]}
4. Nc3 {[%clk 0:03:05.1]} 4... Nc6 {[%clk 0:03:01.6]} 5. d3 {[%clk 0:03:05.5]}
5... e6 {[%clk 0:03:02.1]} 6. h4 {[%clk 0:03:02.2]} 6... h6 {[%clk 0:03:01.6]}
7. Nh3 {[%clk 0:03:01.4]} 7... Nge7 {[%clk 0:03:00.9]} 8. Nf4 {[%clk 0:03:02.3]}
8... Rb8 {[%clk 0:02:48.6]} 9. Qd2 {[%clk 0:02:59.2]} 9... a6 {[%clk 0:02:46.6]}
10. b3 {[%clk 0:02:59.8]} 10... b5 {[%clk 0:02:47]} 11. Bb2 {[%clk 0:03:00.8]}
11... d6 {[%clk 0:02:44.8]} 12. Ne4 {[%clk 0:02:57.7]} 12... e5 {[%clk
0:02:40.6]} 13. Nd5 {[%clk 0:02:51.6]} 13... Nxd5 {[%clk 0:02:39.9]} 14. cxd5
{[%clk 0:02:53.5]} 14... Ne7 {[%clk 0:02:25.5]} 15. Nc3 {[%clk 0:02:53.3]} 15...
b4 {[%clk 0:02:20.1]} 16. Nd1 {[%clk 0:02:53.6]} 16... a5 {[%clk 0:02:02.3]} 17.
e4 {[%clk 0:02:51.2]} 17... Ba6 {[%clk 0:02:02.3]} 18. Ne3 {[%clk 0:02:51.6]}
18... O-O {[%clk 0:02:01]} 19. h5 {[%clk 0:02:44.8]} 19... f5 {[%clk 0:02:01.4]}
20. hxg6 {[%clk 0:02:42.1]} 20... f4 {[%clk 0:02:01.9]} 21. Ng4 {[%clk
0:02:34.8]} 21... Nxg6 {[%clk 0:01:54.3]} 22. Nxh6+ {[%clk 0:02:31.7]} 22...
Bxh6 {[%clk 0:01:54.8]} 23. Rxh6 {[%clk 0:02:33.6]} 23... Kg7 {[%clk 0:01:47.2]}
24. Rh5 {[%clk 0:02:28.5]} 24... Rh8 {[%clk 0:01:39.2]} 25. Rxh8 {[%clk
0:02:27.2]} 25... Qxh8 {[%clk 0:01:40.1]} 26. O-O-O {[%clk 0:02:25]} 26... Qh2
{[%clk 0:01:40.7]} 27. Bf3 {[%clk 0:02:05.3]} 27... fxg3 {[%clk 0:01:30]} 28.
Rh1 {[%clk 0:02:04.4]} 28... g2 {[%clk 0:01:28]} 29. Bxg2 {[%clk 0:01:54.4]}
29... Qxg2 {[%clk 0:01:28.2]} 30. Qh6+ {[%clk 0:01:54.9]} 30... Kf6 {[%clk
0:01:11.9]} 31. f4 {[%clk 0:01:33.3]} 31... Rh8 {[%clk 0:00:23.7]} 32. fxe5+
{[%clk 0:01:33.6]} 32... dxe5 {[%clk 0:00:24.9]} 33. Bxe5+ {[%clk 0:01:34.1]}
33... Kxe5 {[%clk 0:00:25.5]} 34. Qg7+ {[%clk 0:01:35.2]} 34... Kf4 {[%clk
0:00:23.9]} 35. Rxh8 {[%clk 0:01:35.5]} 35... Qf1+ {[%clk 0:00:20.1]} 36. Kb2
{[%clk 0:01:32.9]} 36... Qe2+ {[%clk 0:00:20.5]} 37. Kc1 {[%clk 0:01:34.1]}
37... Qe3+ {[%clk 0:00:20.3]} 38. Kb2 {[%clk 0:01:27.3]} 38... Qd2+ {[%clk
0:00:21]} 39. Kb1 {[%clk 0:01:23.3]} 39... Bxd3+ {[%clk 0:00:20.8]} 40. Ka1
{[%clk 0:01:18.2]} 40... Qc1# {[%clk 0:00:21.6]} 0-1

[Event "*** Biggest EVER Titled Tuesday"]
[Site "Chess.com"]
[Date "2018.04.17"]
[Round "3"]
[White "Ginger_GM"]
[Black "JustKid"]
[Result "0-1"]
[WhiteElo "2457"]
[BlackElo "2461"]
[TimeControl "180+2"]
[EndTime "13:34:55 PDT"]
[Termination "JustKid won by resignation"]

1. d4 {[%clk 0:03:01.9]} 1... d5 {[%clk 0:03:00.9]} 2. c4 {[%clk 0:03:02.9]}
2... c6 {[%clk 0:03:01.9]} 3. Nc3 {[%clk 0:03:03.9]} 3... Nf6 {[%clk 0:03:02.6]}
4. Nf3 {[%clk 0:03:04.4]} 4... a6 {[%clk 0:03:03.7]} 5. h4 {[%clk 0:03:01.9]}
5... Bf5 {[%clk 0:02:58.2]} 6. Bf4 {[%clk 0:02:51.8]} 6... e6 {[%clk 0:02:52.4]}
7. e3 {[%clk 0:02:49.8]} 7... Nbd7 {[%clk 0:02:48.8]} 8. c5 {[%clk 0:02:43.3]}
8... Be7 {[%clk 0:01:58]} 9. Bd3 {[%clk 0:02:37.4]} 9... Bxd3 {[%clk 0:01:56.8]}
10. Qxd3 {[%clk 0:02:37.7]} 10... b6 {[%clk 0:01:54.6]} 11. b4 {[%clk
0:02:21.4]} 11... a5 {[%clk 0:01:54.9]} 12. b5 {[%clk 0:02:22.5]} 12... Rc8
{[%clk 0:01:37]} 13. bxc6 {[%clk 0:01:58.1]} 13... Rxc6 {[%clk 0:01:38.9]} 14.
cxb6 {[%clk 0:01:43.9]} 14... Qxb6 {[%clk 0:01:23.9]} 15. O-O {[%clk 0:01:44.7]}
15... O-O {[%clk 0:01:15.1]} 16. Rab1 {[%clk 0:01:44.8]} 16... Qa7 {[%clk
0:01:15.9]} 17. Nb5 {[%clk 0:01:43.9]} 17... Qa6 {[%clk 0:01:16.4]} 18. Nd2
{[%clk 0:01:38.1]} 18... Rfc8 {[%clk 0:01:07]} 19. a4 {[%clk 0:01:37.4]} 19...
Bb4 {[%clk 0:01:06.6]} 20. Nb3 {[%clk 0:01:07.3]} 20... Ne4 {[%clk 0:01:02.3]}
21. Qd1 {[%clk 0:00:56.8]} 21... h6 {[%clk 0:00:59.4]} 22. h5 {[%clk 0:00:53.9]}
22... Nc3 {[%clk 0:00:46.7]} 23. Nxc3 {[%clk 0:00:54.1]} 23... Rxc3 {[%clk
0:00:48.6]} 24. Nc1 {[%clk 0:00:41.3]} 24... Qc4 {[%clk 0:00:44.6]} 25. Qg4
{[%clk 0:00:34]} 25... Nf6 {[%clk 0:00:44.6]} 26. Qh4 {[%clk 0:00:28.8]} 26...
Be7 {[%clk 0:00:31.1]} 27. Qh3 {[%clk 0:00:21.9]} 27... Rc2 {[%clk 0:00:28.5]}
28. Kh2 {[%clk 0:00:22.3]} 28... Qxf1 {[%clk 0:00:28.8]} 29. Rb7 {[%clk
0:00:19.4]} 29... Rxc1 {[%clk 0:00:25]} 30. Rxe7 {[%clk 0:00:20]} 30... Qh1+
{[%clk 0:00:26.1]} 31. Kg3 {[%clk 0:00:20.8]} 31... Nxh5+ {[%clk 0:00:26.9]} 32.
Kf3 {[%clk 0:00:21.3]} 32... Qxh3+ {[%clk 0:00:27.9]} 33. gxh3 {[%clk
0:00:23.2]} 33... Nxf4 {[%clk 0:00:29.4]} 34. Kxf4 {[%clk 0:00:24.1]} 34... R1c7
{[%clk 0:00:31]} 0-1

[Event "*** Biggest EVER Titled Tuesday"]
[Site "Chess.com"]
[Date "2018.04.17"]
[Round "3"]
[White "Arm-Akiba"]
[Black "Abund"]
[Result "1-0"]
[WhiteElo "2662"]
[BlackElo "2468"]
[TimeControl "180+2"]
[EndTime "13:34:56 PDT"]
[Termination "Arm-Akiba won by resignation"]

1. d4 {[%clk 0:03:01.9]} 1... Nf6 {[%clk 0:02:56.1]} 2. Nf3 {[%clk 0:02:57.2]}
2... b6 {[%clk 0:02:54.9]} 3. c4 {[%clk 0:02:56.9]} 3... e6 {[%clk 0:02:55.5]}
4. g3 {[%clk 0:02:56.7]} 4... Ba6 {[%clk 0:02:56.3]} 5. b3 {[%clk 0:02:51.4]}
5... Bb4+ {[%clk 0:02:56.4]} 6. Bd2 {[%clk 0:02:50]} 6... Be7 {[%clk 0:02:57.2]}
7. Bg2 {[%clk 0:02:48.5]} 7... O-O {[%clk 0:02:57.1]} 8. O-O {[%clk 0:02:45.6]}
8... c6 {[%clk 0:02:58]} 9. Qc2 {[%clk 0:02:43.6]} 9... d5 {[%clk 0:02:57.9]}
10. Rd1 {[%clk 0:02:43.6]} 10... Nbd7 {[%clk 0:02:51.4]} 11. Bf4 {[%clk
0:02:44.3]} 11... Rc8 {[%clk 0:02:44.8]} 12. a4 {[%clk 0:02:40.1]} 12... c5
{[%clk 0:02:36]} 13. dxc5 {[%clk 0:02:36.4]} 13... Rxc5 {[%clk 0:02:31.6]} 14.
Nc3 {[%clk 0:02:26.1]} 14... dxc4 {[%clk 0:02:23.5]} 15. b4 {[%clk 0:02:27.2]}
15... Rc8 {[%clk 0:02:19.6]} 16. Ne5 {[%clk 0:02:25.7]} 16... Bxb4 {[%clk
0:02:00.3]} 17. Nc6 {[%clk 0:02:06.5]} 17... Rxc6 {[%clk 0:01:56.6]} 18. Bxc6
{[%clk 0:02:08.4]} 18... Qc8 {[%clk 0:01:49.7]} 19. Bg2 {[%clk 0:02:02.5]} 19...
Bb7 {[%clk 0:01:42.7]} 20. Bxb7 {[%clk 0:01:43.9]} 20... Qxb7 {[%clk 0:01:43.6]}
21. Nb5 {[%clk 0:01:45.3]} 21... Rc8 {[%clk 0:01:30.1]} 22. Bd6 {[%clk
0:01:46.1]} 22... Ba5 {[%clk 0:01:23.9]} 23. Ba3 {[%clk 0:01:44.2]} 23... Qc6
{[%clk 0:01:17.7]} 24. Nxa7 {[%clk 0:01:42.3]} 24... Qc7 {[%clk 0:01:18.1]} 25.
Nxc8 {[%clk 0:01:42.5]} 25... Qxc8 {[%clk 0:01:20]} 26. Rac1 {[%clk 0:01:39.2]}
26... c3 {[%clk 0:01:19.8]} 27. Rd3 {[%clk 0:01:27.8]} 27... h6 {[%clk
0:01:10.4]} 28. Rcd1 {[%clk 0:01:17.6]} 28... Qc6 {[%clk 0:01:09.8]} 29. Rd6
{[%clk 0:01:09]} 29... Qc7 {[%clk 0:01:10.6]} 30. R6d4 {[%clk 0:01:03.9]} 30...
g6 {[%clk 0:01:03.3]} 31. Bb4 {[%clk 0:01:00.3]} 31... Bxb4 {[%clk 0:00:56.8]}
32. Rxb4 {[%clk 0:01:01.6]} 32... Nd5 {[%clk 0:00:56]} 33. Rbd4 {[%clk
0:01:02.2]} 33... Qc5 {[%clk 0:00:52.9]} 34. e4 {[%clk 0:00:58.6]} 34... Nb4
{[%clk 0:00:53.8]} 35. Rxb4 {[%clk 0:00:58.8]} 35... Ne5 {[%clk 0:00:54]} 36.
Rb5 {[%clk 0:00:51.1]} 36... Nf3+ {[%clk 0:00:44.4]} 37. Kg2 {[%clk 0:00:52.4]}
37... Qc4 {[%clk 0:00:27.6]} 38. Kxf3 {[%clk 0:00:51.1]} 38... Qa2 {[%clk
0:00:28.9]} 39. Qxa2 {[%clk 0:00:50.3]} 1-0

[Event "*** Biggest EVER Titled Tuesday"]
[Site "Chess.com"]
[Date "2018.04.17"]
[Round "3"]
[White "albi1999"]
[Black "pedroholly22"]
[Result "1-0"]
[WhiteElo "2390"]
[BlackElo "2220"]
[TimeControl "180+2"]
[EndTime "13:35:06 PDT"]
[Termination "albi1999 won by checkmate"]

1. d4 {[%clk 0:02:52.8]} 1... g6 {[%clk 0:02:53.8]} 2. c4 {[%clk 0:02:47]} 2...
Bg7 {[%clk 0:02:55.7]} 3. g3 {[%clk 0:02:46.5]} 3... d5 {[%clk 0:02:47.2]} 4.
cxd5 {[%clk 0:02:45.9]} 4... Qxd5 {[%clk 0:02:42.6]} 5. Nf3 {[%clk 0:02:43.3]}
5... Bg4 {[%clk 0:02:43.7]} 6. Bg2 {[%clk 0:02:39.4]} 6... Nc6 {[%clk
0:02:38.4]} 7. Nc3 {[%clk 0:02:39.2]} 7... Qd8 {[%clk 0:02:37.8]} 8. d5 {[%clk
0:02:32.7]} 8... Bxf3 {[%clk 0:02:37.1]} 9. Bxf3 {[%clk 0:02:30.3]} 9... Nd4
{[%clk 0:02:37.7]} 10. Bg2 {[%clk 0:02:30.8]} 10... h5 {[%clk 0:02:35.5]} 11.
O-O {[%clk 0:02:23]} 11... Nh6 {[%clk 0:02:35]} 12. e3 {[%clk 0:02:18.3]} 12...
Ndf5 {[%clk 0:02:32]} 13. Qb3 {[%clk 0:02:16.7]} 13... Rb8 {[%clk 0:02:29.6]}
14. Qa4+ {[%clk 0:02:16.6]} 14... Qd7 {[%clk 0:02:26.2]} 15. Qxa7 {[%clk
0:02:16.4]} 15... O-O {[%clk 0:02:27.3]} 16. Qa4 {[%clk 0:02:17.2]} 16... b5
{[%clk 0:02:26]} 17. Qb4 {[%clk 0:02:14.6]} 17... Ng4 {[%clk 0:02:24.4]} 18. Rd1
{[%clk 0:02:11.5]} 18... Nd6 {[%clk 0:02:19.2]} 19. e4 {[%clk 0:01:58.9]} 19...
f5 {[%clk 0:02:16.6]} 20. h3 {[%clk 0:01:55.9]} 20... Nxf2 {[%clk 0:01:40.1]}
21. Kxf2 {[%clk 0:01:55.3]} 21... h4 {[%clk 0:01:36.2]} 22. gxh4 {[%clk
0:01:51.9]} 22... fxe4+ {[%clk 0:01:33.5]} 23. Kg1 {[%clk 0:01:51.7]} 23... Nf5
{[%clk 0:01:15.4]} 24. Nxe4 {[%clk 0:01:38.8]} 24... c5 {[%clk 0:01:00.5]} 25.
Qe1 {[%clk 0:01:27.7]} 25... Bd4+ {[%clk 0:00:55.1]} 26. Kh1 {[%clk 0:01:27.9]}
26... e6 {[%clk 0:00:53.1]} 27. d6 {[%clk 0:01:15.4]} 27... Rf7 {[%clk
0:00:46.2]} 28. Bg5 {[%clk 0:01:13.8]} 28... Rbf8 {[%clk 0:00:44]} 29. Rac1
{[%clk 0:01:12.4]} 29... e5 {[%clk 0:00:34.3]} 30. Nxc5 {[%clk 0:01:09.5]} 30...
Bxc5 {[%clk 0:00:34.5]} 31. Rxc5 {[%clk 0:01:08.9]} 31... Nd4 {[%clk 0:00:31.9]}
32. Qxe5 {[%clk 0:01:05]} 32... Nf3 {[%clk 0:00:29.2]} 33. Qg3 {[%clk
0:01:02.3]} 33... Nxg5 {[%clk 0:00:24.5]} 34. Rxg5 {[%clk 0:01:04.2]} 34... Rg7
{[%clk 0:00:20.6]} 35. Rxg6 {[%clk 0:01:01.5]} 35... Kh7 {[%clk 0:00:21]} 36.
Rxg7+ {[%clk 0:01:00.5]} 36... Qxg7 {[%clk 0:00:22.8]} 37. Qxg7+ {[%clk
0:01:01.2]} 37... Kxg7 {[%clk 0:00:24.6]} 38. d7 {[%clk 0:01:02.7]} 38... Rd8
{[%clk 0:00:24.9]} 39. Bc6 {[%clk 0:01:04.2]} 39... b4 {[%clk 0:00:25.8]} 40.
Re1 {[%clk 0:01:05.4]} 40... b3 {[%clk 0:00:27.7]} 41. axb3 {[%clk 0:01:06.1]}
41... Rh8 {[%clk 0:00:25.7]} 42. Re8 {[%clk 0:01:06]} 42... Rxh4 {[%clk
0:00:27.5]} 43. d8=Q {[%clk 0:01:07.1]} 43... Rxh3+ {[%clk 0:00:29.3]} 44. Kg2
{[%clk 0:01:08.3]} 44... Rg3+ {[%clk 0:00:30.6]} 45. Kxg3 {[%clk 0:01:08.7]}
45... Kf7 {[%clk 0:00:32.5]} 46. Bd5+ {[%clk 0:01:07.8]} 46... Kg6 {[%clk
0:00:32.9]} 47. Re6+ {[%clk 0:01:07.1]} 47... Kf5 {[%clk 0:00:33.5]} 48. Qf6#
{[%clk 0:01:08.1]} 1-0

[Event "*** Biggest EVER Titled Tuesday"]
[Site "Chess.com"]
[Date "2018.04.17"]
[Round "3"]
[White "ShimanovAlex"]
[Black "Robert_Chessmood"]
[Result "1-0"]
[WhiteElo "2715"]
[BlackElo "2757"]
[TimeControl "180+2"]
[EndTime "13:35:10 PDT"]
[Termination "ShimanovAlex won on time"]

1. Nf3 {[%clk 0:03:00.5]} 1... d5 {[%clk 0:03:00.7]} 2. g3 {[%clk 0:03:01.5]}
2... Bg4 {[%clk 0:03:00.6]} 3. Bg2 {[%clk 0:03:02.4]} 3... e6 {[%clk 0:03:01.8]}
4. c4 {[%clk 0:03:01.8]} 4... c6 {[%clk 0:03:02.4]} 5. b3 {[%clk 0:02:59]} 5...
Nf6 {[%clk 0:02:57.8]} 6. O-O {[%clk 0:02:59.8]} 6... Bd6 {[%clk 0:02:53.8]} 7.
Bb2 {[%clk 0:03:00.6]} 7... O-O {[%clk 0:02:53.3]} 8. d4 {[%clk 0:03:00.4]} 8...
h6 {[%clk 0:02:50.3]} 9. Nbd2 {[%clk 0:03:00.8]} 9... Nbd7 {[%clk 0:02:48.5]}
10. Rc1 {[%clk 0:02:59.9]} 10... Bf5 {[%clk 0:02:48]} 11. Re1 {[%clk 0:02:50.3]}
11... Qb8 {[%clk 0:02:44.1]} 12. Nh4 {[%clk 0:02:48.6]} 12... Bh7 {[%clk
0:02:44.2]} 13. e4 {[%clk 0:02:47.2]} 13... Bb4 {[%clk 0:02:23.5]} 14. exd5
{[%clk 0:02:27]} 14... cxd5 {[%clk 0:02:18.4]} 15. a3 {[%clk 0:02:25.8]} 15...
Bxd2 {[%clk 0:02:04.5]} 16. Qxd2 {[%clk 0:02:27.7]} 16... Be4 {[%clk 0:02:01.4]}
17. Nf3 {[%clk 0:02:17.5]} 17... Rd8 {[%clk 0:01:54.4]} 18. c5 {[%clk
0:02:17.5]} 18... a5 {[%clk 0:01:49.8]} 19. Bc3 {[%clk 0:02:14.9]} 19... Qc7
{[%clk 0:01:47.8]} 20. b4 {[%clk 0:02:07.4]} 20... axb4 {[%clk 0:01:43.3]} 21.
axb4 {[%clk 0:02:09.3]} 21... b6 {[%clk 0:01:35.1]} 22. b5 {[%clk 0:02:01]}
22... Ra4 {[%clk 0:01:11.5]} 23. c6 {[%clk 0:02:01.7]} 23... Nf8 {[%clk
0:01:12]} 24. Ra1 {[%clk 0:01:52.8]} 24... Rda8 {[%clk 0:01:10.9]} 25. Rxa4
{[%clk 0:01:51]} 25... Rxa4 {[%clk 0:01:12.8]} 26. Ra1 {[%clk 0:01:52.3]} 26...
Rxa1+ {[%clk 0:01:10.8]} 27. Bxa1 {[%clk 0:01:54.2]} 27... Ne8 {[%clk
0:01:04.8]} 28. Qb4 {[%clk 0:01:40.2]} 28... Nd6 {[%clk 0:00:54.5]} 29. Bb2
{[%clk 0:01:40.4]} 29... Ng6 {[%clk 0:00:53.1]} 30. Ne5 {[%clk 0:01:34.8]} 30...
Bxg2 {[%clk 0:00:40.1]} 31. Kxg2 {[%clk 0:01:33]} 31... Nxe5 {[%clk 0:00:37.8]}
32. dxe5 {[%clk 0:01:33.8]} 32... Nc4 {[%clk 0:00:39.3]} 33. Bd4 {[%clk
0:01:30.6]} 33... g5 {[%clk 0:00:30.9]} 34. Qa4 {[%clk 0:01:27.7]} 34... Nxe5
{[%clk 0:00:19.8]} 35. Qa8+ {[%clk 0:01:24]} 35... Kh7 {[%clk 0:00:19.3]} 36.
Qb7 {[%clk 0:01:19.5]} 36... Qd6 {[%clk 0:00:15.8]} 37. c7 {[%clk 0:01:16.2]}
37... Qa3 {[%clk 0:00:14.5]} 38. Bxe5 {[%clk 0:01:14.8]} 38... Qd3 {[%clk
0:00:15.3]} 39. Qxb6 {[%clk 0:01:07.3]} 39... g4 {[%clk 0:00:05.6]} 40. Qe3
{[%clk 0:01:05.5]} 40... Qc4 {[%clk 0:00:05.4]} 41. Qf4 {[%clk 0:01:05.5]} 1-0

[Event "*** Biggest EVER Titled Tuesday"]
[Site "Chess.com"]
[Date "2018.04.17"]
[Round "3"]
[White "jk13"]
[Black "MikaelyanArman"]
[Result "1-0"]
[WhiteElo "2533"]
[BlackElo "2580"]
[TimeControl "180+2"]
[EndTime "13:35:13 PDT"]
[Termination "jk13 won by resignation"]

1. e4 {[%clk 0:03:01.9]} 1... Nf6 {[%clk 0:02:59.7]} 2. e5 {[%clk 0:03:01.2]}
2... Nd5 {[%clk 0:03:00.5]} 3. d4 {[%clk 0:03:03.1]} 3... d6 {[%clk 0:03:01.8]}
4. Nf3 {[%clk 0:03:04.7]} 4... dxe5 {[%clk 0:03:02.4]} 5. Nxe5 {[%clk
0:03:06.2]} 5... c6 {[%clk 0:03:03.7]} 6. Be2 {[%clk 0:03:06.4]} 6... Bf5 {[%clk
0:03:03.7]} 7. O-O {[%clk 0:03:06.8]} 7... Nd7 {[%clk 0:03:03.1]} 8. Nf3 {[%clk
0:03:05.6]} 8... e6 {[%clk 0:03:03.7]} 9. Re1 {[%clk 0:03:06.8]} 9... Bd6 {[%clk
0:03:02.4]} 10. a3 {[%clk 0:03:07.7]} 10... O-O {[%clk 0:03:01.9]} 11. c4 {[%clk
0:03:07]} 11... Nf4 {[%clk 0:02:53.3]} 12. Bf1 {[%clk 0:03:07.1]} 12... Qf6
{[%clk 0:02:43.1]} 13. Nc3 {[%clk 0:03:04.4]} 13... Qg6 {[%clk 0:02:31.5]} 14.
Bxf4 {[%clk 0:02:56.2]} 14... Bxf4 {[%clk 0:02:33.4]} 15. Nh4 {[%clk 0:02:43.6]}
15... Qh6 {[%clk 0:02:29.7]} 16. g3 {[%clk 0:02:44.6]} 16... Bd2 {[%clk
0:01:55.5]} 17. Nxf5 {[%clk 0:02:42.3]} 17... exf5 {[%clk 0:01:57.4]} 18. Re7
{[%clk 0:02:38.6]} 18... Nf6 {[%clk 0:01:47.2]} 19. Qf3 {[%clk 0:02:26.3]} 19...
Rae8 {[%clk 0:01:34.6]} 20. Rxb7 {[%clk 0:02:22.4]} 20... Ng4 {[%clk 0:01:31.2]}
21. h3 {[%clk 0:02:06.7]} 21... Nxf2 {[%clk 0:01:16.2]} 22. Kxf2 {[%clk
0:01:58.9]} 22... f4 {[%clk 0:01:16.5]} 23. Ne4 {[%clk 0:01:23.6]} 23... Be3+
{[%clk 0:01:16.1]} 24. Kg2 {[%clk 0:01:24.2]} 24... f5 {[%clk 0:01:17.1]} 25.
Nc5 {[%clk 0:00:59.6]} 25... Bxd4 {[%clk 0:01:17.2]} 26. Nd7 {[%clk 0:00:59.9]}
26... Rf7 {[%clk 0:01:06.6]} 27. Rd1 {[%clk 0:00:50.1]} 27... Be3 {[%clk
0:00:54]} 28. c5 {[%clk 0:00:42.4]} 28... fxg3 {[%clk 0:00:47]} 29. Bc4 {[%clk
0:00:41.3]} 29... Qg6 {[%clk 0:00:22]} 30. Ne5 {[%clk 0:00:20.1]} 1-0